{"text_format":"1","workbook":"xlsx","n_sheets":3,"sheets":["Λίστα αποθεμάτων αποθήκης","Λίστα επιλογής αποθέματος","Αναζήτηση συσκευασίας"],"not_rendered":{"charts":0,"images":0,"macros":1,"external_links":0,"defined_names":8,"comments":0,"pivot_tables":0},"unopened":[],"bounds":{"document_bytes":16777216,"sheet_cells":100000,"rows_first":2000,"rows_last":500,"rows_between":2000,"halvings":0,"cell_chars":16384,"cell_head_chars":4096},"cells_cut":0,"cells_raw":0,"read":"whole","date_system":"1900"}

{"sheet":"Λίστα αποθεμάτων αποθήκης","index":0,"n_rows":15,"n_cols":11,"rows_kept":15,"cut":false,"hidden":false,"merged":[]}
[null,"ΛΙΣΤΑ ΑΠΟΘΕΜΑΤΩΝ ΑΠΟΘΗΚΗΣ"]
[null,"ΣΥΝΟΛΙΚΗ ΑΞΙΑ ΑΠΟΘΕΜΑΤΟΣ","ΕΙΔΗ ΣΕ ΑΠΟΘΕΜΑ:","ΠΛΗΘΟΣ ΣΥΣΚΕΥΑΣΙΩΝ","ΛΙΣΤΑ ΕΠΙΛΟΓΗΣ ΑΠΟΘΕΜΑΤΟΣ","ΑΝΑΖΗΤΗΣΗ ΣΥΣΚΕΥΑΣΙΑΣ"]
[null,{"$f":"SUM(ΛίσταΑποθεμάτων[ΑΞΙΑ ΑΠΟΘΕΜΑΤΟΣ])","v":4649},{"$f":"COUNTA(ΛίσταΑποθεμάτων[ΠΕΡΙΓΡΑΦΗ])","v":11},{"$f":"SUMPRODUCT((1/COUNTIF(ΛίσταΑποθεμάτων[ΑΡ. ΣΥΣΚΕΥΑΣΙΑΣ],ΛίσταΑποθεμάτων[ΑΡ. ΣΥΣΚΕΥΑΣΙΑΣ]&\"\")))","v":6}]
[null,"SKU","ΠΕΡΙΓΡΑΦΗ","ΑΡ. ΣΥΣΚΕΥΑΣΙΑΣ","ΘΕΣΗ","ΜΟΝΑΔΑ","ΠΟΣΟΤΗΤΑ","ΠΟΣΟΤΗΤΑ ΕΠΑΝΑΛΗΠΤΙΚΗΣ ΠΑΡΑΓΓΕΛΙΑΣ","ΚΟΣΤΟΣ","ΑΞΙΑ ΑΠΟΘΕΜΑΤΟΣ","ΕΠΑΝΑΛΗΠΤΙΚΗ ΠΑΡΑΓΓΕΛΙΑ"]
[null,"SP7875","Είδος 1","T345",{"$f":"IFERROR(VLOOKUP(ΛίσταΑποθεμάτων[[#This Row],[ΑΡ. ΣΥΣΚΕΥΑΣΙΑΣ]],ΑναζήτησηΣυσκευασίας[],3,FALSE),\"\")","v":"Σειρά 2, θέση 1"},"Τεμάχιο",20,10,30,{"$f":"ΛίσταΑποθεμάτων[[#This Row],[ΠΟΣΟΤΗΤΑ]]*ΛίσταΑποθεμάτων[[#This Row],[ΚΟΣΤΟΣ]]","v":600},{"$f":"IFERROR(IF(ΛίσταΑποθεμάτων[[#This Row],[ΠΟΣΟΤΗΤΑ]]<=ΛίσταΑποθεμάτων[[#This Row],[ΠΟΣΟΤΗΤΑ ΕΠΑΝΑΛΗΠΤΙΚΗΣ ΠΑΡΑΓΓΕΛΙΑΣ]],1,0),0)","v":0}]
[null,"TR87680","Είδος 2","T345",{"$f":"IFERROR(VLOOKUP(ΛίσταΑποθεμάτων[[#This Row],[ΑΡ. ΣΥΣΚΕΥΑΣΙΑΣ]],ΑναζήτησηΣυσκευασίας[],3,FALSE),\"\")","v":"Σειρά 2, θέση 1"},"Τεμάχιο",30,15,40,{"$f":"ΛίσταΑποθεμάτων[[#This Row],[ΠΟΣΟΤΗΤΑ]]*ΛίσταΑποθεμάτων[[#This Row],[ΚΟΣΤΟΣ]]","v":1200},{"$f":"IFERROR(IF(ΛίσταΑποθεμάτων[[#This Row],[ΠΟΣΟΤΗΤΑ]]<=ΛίσταΑποθεμάτων[[#This Row],[ΠΟΣΟΤΗΤΑ ΕΠΑΝΑΛΗΠΤΙΚΗΣ ΠΑΡΑΓΓΕΛΙΑΣ]],1,0),0)","v":0}]
[null,"MK676554","Είδος 3","T5789",{"$f":"IFERROR(VLOOKUP(ΛίσταΑποθεμάτων[[#This Row],[ΑΡ. ΣΥΣΚΕΥΑΣΙΑΣ]],ΑναζήτησηΣυσκευασίας[],3,FALSE),\"\")","v":"Σειρά 1, θέση 1"},"Τεμάχιο",10,5,5,{"$f":"ΛίσταΑποθεμάτων[[#This Row],[ΠΟΣΟΤΗΤΑ]]*ΛίσταΑποθεμάτων[[#This Row],[ΚΟΣΤΟΣ]]","v":50},{"$f":"IFERROR(IF(ΛίσταΑποθεμάτων[[#This Row],[ΠΟΣΟΤΗΤΑ]]<=ΛίσταΑποθεμάτων[[#This Row],[ΠΟΣΟΤΗΤΑ ΕΠΑΝΑΛΗΠΤΙΚΗΣ ΠΑΡΑΓΓΕΛΙΑΣ]],1,0),0)","v":0}]
[null,"YE98767","Είδος 4","T9876",{"$f":"IFERROR(VLOOKUP(ΛίσταΑποθεμάτων[[#This Row],[ΑΡ. ΣΥΣΚΕΥΑΣΙΑΣ]],ΑναζήτησηΣυσκευασίας[],3,FALSE),\"\")","v":"Σειρά 3, θέση 2"},"Κιβώτιο (10 δοχεία)",40,10,15,{"$f":"ΛίσταΑποθεμάτων[[#This Row],[ΠΟΣΟΤΗΤΑ]]*ΛίσταΑποθεμάτων[[#This Row],[ΚΟΣΤΟΣ]]","v":600},{"$f":"IFERROR(IF(ΛίσταΑποθεμάτων[[#This Row],[ΠΟΣΟΤΗΤΑ]]<=ΛίσταΑποθεμάτων[[#This Row],[ΠΟΣΟΤΗΤΑ ΕΠΑΝΑΛΗΠΤΙΚΗΣ ΠΑΡΑΓΓΕΛΙΑΣ]],1,0),0)","v":0}]
[null,"XR23423","Είδος 5","T098",{"$f":"IFERROR(VLOOKUP(ΛίσταΑποθεμάτων[[#This Row],[ΑΡ. ΣΥΣΚΕΥΑΣΙΑΣ]],ΑναζήτησηΣυσκευασίας[],3,FALSE),\"\")","v":"Σειρά 3, θέση 1"},"Τεμάχιο",12,10,26,{"$f":"ΛίσταΑποθεμάτων[[#This Row],[ΠΟΣΟΤΗΤΑ]]*ΛίσταΑποθεμάτων[[#This Row],[ΚΟΣΤΟΣ]]","v":312},{"$f":"IFERROR(IF(ΛίσταΑποθεμάτων[[#This Row],[ΠΟΣΟΤΗΤΑ]]<=ΛίσταΑποθεμάτων[[#This Row],[ΠΟΣΟΤΗΤΑ ΕΠΑΝΑΛΗΠΤΙΚΗΣ ΠΑΡΑΓΓΕΛΙΑΣ]],1,0),0)","v":0}]
[null,"PW98762","Είδος 6","T345",{"$f":"IFERROR(VLOOKUP(ΛίσταΑποθεμάτων[[#This Row],[ΑΡ. ΣΥΣΚΕΥΑΣΙΑΣ]],ΑναζήτησηΣυσκευασίας[],3,FALSE),\"\")","v":"Σειρά 2, θέση 1"},"Τεμάχιο",7,10,50,{"$f":"ΛίσταΑποθεμάτων[[#This Row],[ΠΟΣΟΤΗΤΑ]]*ΛίσταΑποθεμάτων[[#This Row],[ΚΟΣΤΟΣ]]","v":350},{"$f":"IFERROR(IF(ΛίσταΑποθεμάτων[[#This Row],[ΠΟΣΟΤΗΤΑ]]<=ΛίσταΑποθεμάτων[[#This Row],[ΠΟΣΟΤΗΤΑ ΕΠΑΝΑΛΗΠΤΙΚΗΣ ΠΑΡΑΓΓΕΛΙΑΣ]],1,0),0)","v":1}]
[null,"BM87684","Είδος 7","T349",{"$f":"IFERROR(VLOOKUP(ΛίσταΑποθεμάτων[[#This Row],[ΑΡ. ΣΥΣΚΕΥΑΣΙΑΣ]],ΑναζήτησηΣυσκευασίας[],3,FALSE),\"\")","v":"Σειρά 1, θέση 2"},"Τεμάχιο",10,5,10,{"$f":"ΛίσταΑποθεμάτων[[#This Row],[ΠΟΣΟΤΗΤΑ]]*ΛίσταΑποθεμάτων[[#This Row],[ΚΟΣΤΟΣ]]","v":100},{"$f":"IFERROR(IF(ΛίσταΑποθεμάτων[[#This Row],[ΠΟΣΟΤΗΤΑ]]<=ΛίσταΑποθεμάτων[[#This Row],[ΠΟΣΟΤΗΤΑ ΕΠΑΝΑΛΗΠΤΙΚΗΣ ΠΑΡΑΓΓΕΛΙΑΣ]],1,0),0)","v":0}]
[null,"BH67655","Είδος 8","T5789",{"$f":"IFERROR(VLOOKUP(ΛίσταΑποθεμάτων[[#This Row],[ΑΡ. ΣΥΣΚΕΥΑΣΙΑΣ]],ΑναζήτησηΣυσκευασίας[],3,FALSE),\"\")","v":"Σειρά 1, θέση 1"},"Τεμάχιο",19,10,3,{"$f":"ΛίσταΑποθεμάτων[[#This Row],[ΠΟΣΟΤΗΤΑ]]*ΛίσταΑποθεμάτων[[#This Row],[ΚΟΣΤΟΣ]]","v":57},{"$f":"IFERROR(IF(ΛίσταΑποθεμάτων[[#This Row],[ΠΟΣΟΤΗΤΑ]]<=ΛίσταΑποθεμάτων[[#This Row],[ΠΟΣΟΤΗΤΑ ΕΠΑΝΑΛΗΠΤΙΚΗΣ ΠΑΡΑΓΓΕΛΙΑΣ]],1,0),0)","v":0}]
[null,"WT98768","Είδος 9","T9875",{"$f":"IFERROR(VLOOKUP(ΛίσταΑποθεμάτων[[#This Row],[ΑΡ. ΣΥΣΚΕΥΑΣΙΑΣ]],ΑναζήτησηΣυσκευασίας[],3,FALSE),\"\")","v":"Σειρά 2, θέση 2"},"Πακέτο (5 δοχεία)",20,30,14,{"$f":"ΛίσταΑποθεμάτων[[#This Row],[ΠΟΣΟΤΗΤΑ]]*ΛίσταΑποθεμάτων[[#This Row],[ΚΟΣΤΟΣ]]","v":280},{"$f":"IFERROR(IF(ΛίσταΑποθεμάτων[[#This Row],[ΠΟΣΟΤΗΤΑ]]<=ΛίσταΑποθεμάτων[[#This Row],[ΠΟΣΟΤΗΤΑ ΕΠΑΝΑΛΗΠΤΙΚΗΣ ΠΑΡΑΓΓΕΛΙΑΣ]],1,0),0)","v":1}]
[null,"TS3456","Είδος 10","T349",{"$f":"IFERROR(VLOOKUP(ΛίσταΑποθεμάτων[[#This Row],[ΑΡ. ΣΥΣΚΕΥΑΣΙΑΣ]],ΑναζήτησηΣυσκευασίας[],3,FALSE),\"\")","v":"Σειρά 1, θέση 2"},"Τεμάχιο",15,8,60,{"$f":"ΛίσταΑποθεμάτων[[#This Row],[ΠΟΣΟΤΗΤΑ]]*ΛίσταΑποθεμάτων[[#This Row],[ΚΟΣΤΟΣ]]","v":900},{"$f":"IFERROR(IF(ΛίσταΑποθεμάτων[[#This Row],[ΠΟΣΟΤΗΤΑ]]<=ΛίσταΑποθεμάτων[[#This Row],[ΠΟΣΟΤΗΤΑ ΕΠΑΝΑΛΗΠΤΙΚΗΣ ΠΑΡΑΓΓΕΛΙΑΣ]],1,0),0)","v":0}]
[null,"WDG123","Είδος 11","T349",{"$f":"IFERROR(VLOOKUP(ΛίσταΑποθεμάτων[[#This Row],[ΑΡ. ΣΥΣΚΕΥΑΣΙΑΣ]],ΑναζήτησηΣυσκευασίας[],3,FALSE),\"\")","v":"Σειρά 1, θέση 2"},"Τεμάχιο",25,15,8,{"$f":"ΛίσταΑποθεμάτων[[#This Row],[ΠΟΣΟΤΗΤΑ]]*ΛίσταΑποθεμάτων[[#This Row],[ΚΟΣΤΟΣ]]","v":200},{"$f":"IFERROR(IF(ΛίσταΑποθεμάτων[[#This Row],[ΠΟΣΟΤΗΤΑ]]<=ΛίσταΑποθεμάτων[[#This Row],[ΠΟΣΟΤΗΤΑ ΕΠΑΝΑΛΗΠΤΙΚΗΣ ΠΑΡΑΓΓΕΛΙΑΣ]],1,0),0)","v":0}]

{"sheet":"Λίστα επιλογής αποθέματος","index":1,"n_rows":9,"n_cols":9,"rows_kept":9,"cut":false,"hidden":false,"merged":[]}
[null,"ΛΙΣΤΑ ΕΠΙΛΟΓΗΣ ΑΠΟΘΕΜΑΤΟΣ"]
[null,null,"ΛΙΣΤΑ ΑΠΟΘΕΜΑΤΩΝ"]
[]
[null,"ΑΡ. ΠΑΡΑΓΓΕΛΙΑΣ","SKU","ΠΟΣΟΤΗΤΑ ΕΠΙΛΟΓΗΣ","ΔΙΑΘΕΣΙΜΗ ΠΟΣΟΤΗΤΑ","ΠΕΡΙΓΡΑΦΗ ΣΤΟΙΧΕΙΟΥ","ΜΟΝΑΔΑ","ΑΡ. ΣΥΣΚΕΥΑΣΙΑΣ","ΘΕΣΗ"]
[null,"TP001-1","SP7875",3,{"$f":"IFERROR(VLOOKUP(ΛίσταΕπιλογήςΑποθεμάτων[SKU],ΛίσταΑποθεμάτων[],6,FALSE),\"\")","v":20},{"$f":"IFERROR(VLOOKUP(ΛίσταΕπιλογήςΑποθεμάτων[SKU],ΛίσταΑποθεμάτων[],2,FALSE),\"\")","v":"Είδος 1"},{"$f":"IFERROR(VLOOKUP(ΛίσταΕπιλογήςΑποθεμάτων[SKU],ΛίσταΑποθεμάτων[],5,FALSE),\"\")","v":"Τεμάχιο"},{"$f":"IFERROR(VLOOKUP(ΛίσταΕπιλογήςΑποθεμάτων[SKU],ΛίσταΑποθεμάτων[],3,FALSE),\"\")","v":"T345"},{"$f":"IFERROR(VLOOKUP(ΛίσταΕπιλογήςΑποθεμάτων[SKU],ΛίσταΑποθεμάτων[],4,FALSE),\"\")","v":"Σειρά 2, θέση 1"}]
[null,"TP001-1","YE98767",1,{"$f":"IFERROR(VLOOKUP(ΛίσταΕπιλογήςΑποθεμάτων[SKU],ΛίσταΑποθεμάτων[],6,FALSE),\"\")","v":40},{"$f":"IFERROR(VLOOKUP(ΛίσταΕπιλογήςΑποθεμάτων[SKU],ΛίσταΑποθεμάτων[],2,FALSE),\"\")","v":"Είδος 4"},{"$f":"IFERROR(VLOOKUP(ΛίσταΕπιλογήςΑποθεμάτων[SKU],ΛίσταΑποθεμάτων[],5,FALSE),\"\")","v":"Κιβώτιο (10 δοχεία)"},{"$f":"IFERROR(VLOOKUP(ΛίσταΕπιλογήςΑποθεμάτων[SKU],ΛίσταΑποθεμάτων[],3,FALSE),\"\")","v":"T9876"},{"$f":"IFERROR(VLOOKUP(ΛίσταΕπιλογήςΑποθεμάτων[SKU],ΛίσταΑποθεμάτων[],4,FALSE),\"\")","v":"Σειρά 3, θέση 2"}]
[null,"TP001-1","BM87684",2,{"$f":"IFERROR(VLOOKUP(ΛίσταΕπιλογήςΑποθεμάτων[SKU],ΛίσταΑποθεμάτων[],6,FALSE),\"\")","v":10},{"$f":"IFERROR(VLOOKUP(ΛίσταΕπιλογήςΑποθεμάτων[SKU],ΛίσταΑποθεμάτων[],2,FALSE),\"\")","v":"Είδος 7"},{"$f":"IFERROR(VLOOKUP(ΛίσταΕπιλογήςΑποθεμάτων[SKU],ΛίσταΑποθεμάτων[],5,FALSE),\"\")","v":"Τεμάχιο"},{"$f":"IFERROR(VLOOKUP(ΛίσταΕπιλογήςΑποθεμάτων[SKU],ΛίσταΑποθεμάτων[],3,FALSE),\"\")","v":"T349"},{"$f":"IFERROR(VLOOKUP(ΛίσταΕπιλογήςΑποθεμάτων[SKU],ΛίσταΑποθεμάτων[],4,FALSE),\"\")","v":"Σειρά 1, θέση 2"}]
[null,"TP001-1","TS3456",6,{"$f":"IFERROR(VLOOKUP(ΛίσταΕπιλογήςΑποθεμάτων[SKU],ΛίσταΑποθεμάτων[],6,FALSE),\"\")","v":15},{"$f":"IFERROR(VLOOKUP(ΛίσταΕπιλογήςΑποθεμάτων[SKU],ΛίσταΑποθεμάτων[],2,FALSE),\"\")","v":"Είδος 10"},{"$f":"IFERROR(VLOOKUP(ΛίσταΕπιλογήςΑποθεμάτων[SKU],ΛίσταΑποθεμάτων[],5,FALSE),\"\")","v":"Τεμάχιο"},{"$f":"IFERROR(VLOOKUP(ΛίσταΕπιλογήςΑποθεμάτων[SKU],ΛίσταΑποθεμάτων[],3,FALSE),\"\")","v":"T349"},{"$f":"IFERROR(VLOOKUP(ΛίσταΕπιλογήςΑποθεμάτων[SKU],ΛίσταΑποθεμάτων[],4,FALSE),\"\")","v":"Σειρά 1, θέση 2"}]
[null,"TP001-1","MK676554",3,{"$f":"IFERROR(VLOOKUP(ΛίσταΕπιλογήςΑποθεμάτων[SKU],ΛίσταΑποθεμάτων[],6,FALSE),\"\")","v":10},{"$f":"IFERROR(VLOOKUP(ΛίσταΕπιλογήςΑποθεμάτων[SKU],ΛίσταΑποθεμάτων[],2,FALSE),\"\")","v":"Είδος 3"},{"$f":"IFERROR(VLOOKUP(ΛίσταΕπιλογήςΑποθεμάτων[SKU],ΛίσταΑποθεμάτων[],5,FALSE),\"\")","v":"Τεμάχιο"},{"$f":"IFERROR(VLOOKUP(ΛίσταΕπιλογήςΑποθεμάτων[SKU],ΛίσταΑποθεμάτων[],3,FALSE),\"\")","v":"T5789"},{"$f":"IFERROR(VLOOKUP(ΛίσταΕπιλογήςΑποθεμάτων[SKU],ΛίσταΑποθεμάτων[],4,FALSE),\"\")","v":"Σειρά 1, θέση 1"}]

{"sheet":"Αναζήτηση συσκευασίας","index":2,"n_rows":11,"n_cols":7,"rows_kept":11,"cut":false,"hidden":false,"merged":[]}
[null,"ΑΝΑΖΗΤΗΣΗ ΣΥΣΚΕΥΑΣΙΑΣ"]
[null,"ΛΙΣΤΑ ΑΠΟΘΕΜΑΤΩΝ"]
[]
[null,"ΑΡ. ΣΥΣΚΕΥΑΣΙΑΣ","ΠΕΡΙΓΡΑΦΗ","ΘΕΣΗ","ΠΛΑΤΟΣ","ΥΨΟΣ","ΜΗΚΟΣ"]
[null,"T345","Μεγάλη συσκευασία","Σειρά 2, θέση 1",50,10,10]
[null,"T5789","Μικρή συσκευασία","Σειρά 1, θέση 1",25,5,5]
[null,"T9876","Μεγάλη συσκευασία","Σειρά 3, θέση 2",50,10,10]
[null,"T098","Μεσαία συσκευασία","Σειρά 3, θέση 1",30,7,10]
[null,"T349","Μικρή συσκευασία","Σειρά 1, θέση 2",25,5,5]
[null,"T5789","Μεγάλη συσκευασία","Σειρά 4, θέση 5",50,10,10]
[null,"T9875","Μεγάλη συσκευασία","Σειρά 2, θέση 2",50,10,10]